bitfinex/quotes_ETHUSD_20250424
["timestamp","ask_amount","ask_price","bid_price","bid_amount"]
[1745457871525,5.133,1785.2,1784.8,9.52669641]
[1745457871727,5.133,1785.2,1784.9,1.10087366]
[1745457872527,5.133,1785.2,1784.9,0.14820402]
[1745457872694,5.133,1785.2,1784.8,3.92392027]
[1745457872894,5.133,1785.2,1784.9,0.14673659]
[1745457873090,5.133,1785.2,1784.8,3.92392027]
[1745457873289,0.1,1785.4,1785.0,8.66584054]
[1745457873491,0.1,1785.4,1785.3,3.92392027]
[1745457873712,0.1,1785.4,1785.3,4.07065686]
[1745457874421,0.1,1785.4,1785.3,4.88865686]
[1745457875899,0.1,1785.4,1785.3,4.07065686]
[1745457881949,0.1,1785.4,1785.3,0.14673659]
[1745457882154,0.1,1785.4,1784.8,5.60274095]
[1745457882155,0.9046,1785.4,1784.9,6.92392027]
[1745457882304,6.5057857,1785.4,1785.0,0.12989204]
[1745457882505,5.067,1785.3,1785.0,0.12989204]
[1745457890258,0.7937,1785.2,1785.0,0.12989204]
[1745457894715,6.39539781,1785.2,1785.0,0.12989204]
[1745457894923,0.7937,1785.0,1784.4,3.92392027]
[1745457895249,0.7937,1784.7,1784.5,0.11309322]
[1745457895453,11.46497578,1784.7,1784.5,0.11309322]
[1745457895670,11.46497578,1784.7,1784.2,4.70002027]
[1745457895671,5.8617,1784.7,1784.2,4.70002027]
[1745457895816,12.61142582,1784.7,1784.2,3.92392027]
[1745457896361,12.61142582,1784.7,1783.9,3.92392027]
[1745457896362,5.60420936,1784.4,1783.9,3.92392027]
[1745457896517,0.7937,1784.3,1783.9,3.92392027]
[1745457896968,5.8617,1784.3,1783.9,3.92392027]
[1745457897679,12.05233453,1784.3,1783.9,3.92392027]
[1745457897885,5.60501365,1784.2,1783.7,3.92392027]
[1745457898176,0.51937409,1784.2,1783.7,3.92392027]
[1745457898377,6.12415514,1784.2,1783.7,3.92392027]
[1745457898571,0.7937,1784.1,1783.7,3.92392027]
[1745457898728,1.48548551,1784.1,1783.7,3.92392027]
[1745457899378,0.7937,1784.0,1783.4,3.92392027]
[1745457899542,5.8617,1783.9,1783.4,3.92392027]
[1745457899936,11.46761203,1783.9,1783.4,3.92392027]
[1745457900133,6.75289556,1783.8,1783.4,3.92392027]
[1745457900340,0.8219,1783.7,1783.4,3.92392027]
[1745457901136,0.8219,1783.7,1783.0,9.27584461]
[1745457901137,5.60671129,1783.6,1783.0,3.92392027]
[1745457901469,0.8219,1783.4,1783.0,3.92392027]
[1745457902240,5.069,1783.5,1783.2,4.72862027]
[1745457902751,5.069,1783.5,1783.2,3.92392027]
[1745457904091,5.65809,1783.5,1783.2,3.92392027]
[1745457904982,5.65809,1783.5,1783.3,0.11452613]
[1745457905577,5.069,1783.5,1783.3,0.11452613]
[1745457905781,5.069,1783.5,1783.4,3.92392027]
[1745457905982,5.069,1783.5,1783.4,0.12427736]
[1745457906286,5.069,1783.5,1783.2,3.92392027]
[1745457906487,5.069,1783.5,1783.4,0.12427736]
[1745457906983,5.069,1783.5,1783.2,3.92392027]
[1745457907283,5.069,1783.5,1783.3,0.12427736]
[1745457909364,5.069,1783.5,1783.3,1.08987523]
[1745457909559,5.069,1783.5,1783.4,10.33588728]
[1745457909781,5.069,1783.5,1783.4,4.72862027]
[1745457909952,5.069,1783.5,1783.4,4.85289763]
[1745457910151,5.069,1783.5,1783.4,10.46016464]
[1745457910366,5.8189,1783.9,1783.4,14.60274089]
[1745457910652,5.8189,1783.9,1783.4,5.99547388]
[1745457910982,5.8189,1783.9,1783.4,4.85289763]
[1745457911483,5.60619169,1783.8,1783.4,0.12427736]
[1745457911855,11.42465226,1783.9,1783.2,4.72862027]
[1745457912171,1.14246523,1783.8,1783.2,6.06230087]
[1745457912376,6.74851086,1783.8,1783.3,0.12395843]
[1745457912971,1.14246523,1783.8,1783.3,0.12395843]
[1745457914090,6.74848207,1783.8,1783.3,0.12395843]
[1745457915179,0.7638,1783.7,1783.3,0.12395843]
[1745457915375,1.51502821,1783.7,1783.1,6.92392027]
[1745457915555,1.51502821,1783.7,1783.2,0.1235119]
[1745457917493,0.7638,1783.7,1783.3,3.92392027]
[1745457917990,0.7638,1783.7,1783.4,0.1235119]
[1745457918195,5.7608,1783.9,1783.4,0.7899]
[1745457918485,8.74571865,1783.9,1783.5,0.12376704]
[1745457918787,5.7608,1783.9,1783.4,0.7899]
[1745457918995,5.7608,1783.9,1783.5,0.12376704]
[1745457919896,5.7608,1783.9,1783.5,4.04768731]
[1745457920302,5.7608,1783.9,1783.5,0.12376704]
[1745457920469,11.36668378,1783.9,1783.5,0.12376704]
[1745457920671,12.34915104,1783.8,1783.2,0.7899]
[1745457920872,6.74284733,1783.8,1783.6,0.12287409]
[1745457921176,6.74284733,1783.8,1783.7,0.12287409]
[1745457921378,6.74284733,1783.8,1783.2,0.7899]
[1745457921600,0.67428473,1783.7,1783.3,0.12287409]
[1745457921901,0.7638,1783.6,1783.3,0.12287409]
[1745457922201,4.997,1783.5,1783.3,0.12287409]
[1745457923010,10.60410642,1783.5,1783.3,0.12287409]
[1745457923182,4.997,1783.5,1783.0,3.0]
[1745457923389,6.13376477,1783.5,1783.1,0.12287409]
[1745457923588,6.13376477,1783.5,1782.7,0.7899]
[1745457923589,5.60789591,1783.2,1782.7,0.7899]
[1745457923904,5.60861078,1783.0,1782.8,0.12287409]
[1745457924089,5.60883953,1782.9,1782.8,0.12287409]
[1745457924290,0.7638,1782.8,1782.4,3.92392027]
[1745457924677,4.998,1782.7,1782.5,0.12887227]
[1745457926004,4.998,1782.7,1782.3,4.71382027]
[1745457926305,4.998,1782.7,1782.6,0.13550966]
[1745457926602,4.998,1782.7,1782.6,0.13608435]
[1745457926767,4.998,1782.7,1782.3,4.71382027]
[1745457926992,4.998,1782.7,1782.4,0.13608435]
[1745457927191,4.998,1782.7,1782.5,9.53381803]
[1745457927420,4.998,1783.0,1782.6,6.39968099]
[1745457927641,4.998,1783.0,1782.9,0.7899]
[1745457928022,4.998,1783.0,1782.9,0.92579278]
[1745457928252,0.51859381,1783.4,1782.9,6.53439524]
[1745457928407,4.999,1783.4,1783.1,3.92392027]
[1745457928998,1.28272105,1783.6,1783.3,9.53134602]
[1745457929244,1.28272105,1783.6,1783.4,0.9531346]
[1745457929245,0.51892105,1783.6,1783.4,0.9531346]
[1745457929413,4.999,1783.7,1783.3,3.92392027]
[1745457929619,4.999,1783.7,1783.4,0.13359445]
[1745457929822,4.999,1783.7,1783.3,3.92392027]
[1745457930002,4.999,1783.7,1783.5,0.13110564]
[1745457930198,4.999,1783.7,1783.3,3.92392027]
[1745457930439,4.999,1783.7,1783.4,0.13110564]
[1745457930880,4.999,1783.7,1783.3,3.92392027]
[1745457931066,4.999,1783.7,1783.5,0.13110564]
[1745457931371,4.999,1783.7,1783.6,0.13110564]
[1745457931577,4.999,1783.7,1783.3,3.92392027]
[1745457931881,4.999,1783.7,1783.6,0.13110564]
[1745457932472,4.999,1783.7,1783.3,9.5313295]
[1745457932640,5.51792105,1783.8,1783.6,0.88430564]
[1745457932840,0.51892105,1783.9,1783.6,6.35982833]
[1745457933047,0.51892105,1783.9,1783.7,4.05502591]
[1745457933369,4.999,1784.1,1783.7,4.05502591]
[1745457933592,5.51792105,1784.1,1783.7,4.05502591]
[1745457934374,4.999,1784.1,1783.7,4.05502591]
[1745457934990,4.999,1784.1,1783.7,9.66124154]
[1745457935154,4.999,1784.1,1783.7,5.19930755]
[1745457936687,0.7507,1784.0,1783.7,0.13110564]
[1745457937077,4.999,1784.1,1783.7,0.13110564]
[1745457938060,4.999,1784.1,1783.7,0.88430564]
[1745457939300,4.999,1784.1,1783.7,0.13110564]
[1745457939487,10.60419632,1784.1,1783.7,0.13110564]
[1745457939675,1.06041963,1784.0,1783.4,9.36044206]
[1745457939877,1.06041963,1784.0,1783.5,0.11981309]
[1745457940076,1.06041963,1784.0,1783.5,4.04373336]
[1745457941098,4.999,1784.1,1783.5,4.04373336]
[1745457941607,10.60411593,1784.1,1783.5,4.04373336]
[1745457941767,4.999,1784.1,1783.5,4.04373336]
[1745457942103,4.999,1784.1,1783.6,0.7532]
[1745457942702,4.999,1784.1,1783.7,0.11981309]
[1745457942902,6.13444737,1784.1,1783.7,0.11981309]
[1745457943203,4.999,1784.1,1783.7,0.11981309]
[1745457945401,10.60406765,1784.1,1783.7,0.11981309]
[1745457945607,5.6055147,1784.0,1783.7,0.11981309]
[1745457946503,4.999,1784.1,1783.7,0.11981309]
[1745457947280,4.956,1784.1,1783.9,0.8242]
[1745457947609,4.956,1784.1,1784.0,0.12083334]
[1745457949366,4.956,1784.1,1784.0,4.04475361]
[1745457949571,0.7792,1784.6,1784.1,0.7526]
[1745457949572,4.955,1784.4,1784.1,0.7526]
[1745457949771,4.955,1784.4,1784.2,0.12013193]
[1745457952386,6.37093871,1784.3,1784.2,0.12013193]
[1745457952582,5.60529772,1784.1,1783.5,4.67652027]
[1745457952797,4.955,1784.0,1783.6,3.10641427]
[1745457953330,5.60622392,1783.8,1783.6,0.10641427]
[1745457953609,5.60622392,1783.8,1783.2,3.92392027]
[1745457953809,6.37236118,1783.9,1783.3,3.39239203]
[1745457954008,0.7665,1783.9,1783.5,0.7526]
[1745457954178,5.60607334,1783.8,1783.5,0.7526]
[1745457954378,11.32699467,1784.0,1783.5,0.7526]
[1745457954609,5.7215,1784.0,1783.5,1.22025203]
[1745457955104,4.955,1784.0,1783.5,1.22025203]
[1745457956480,10.56048738,1784.0,1783.5,1.22025203]
[1745457956707,4.955,1784.0,1783.5,1.22025203]
[1745457957716,5.47430163,1784.0,1783.5,1.22025203]
[1745457957919,5.6057694,1783.9,1783.5,0.7526]
[1745457958081,12.18779335,1784.0,1783.5,0.7526]
[1745457958282,0.51930163,1783.9,1783.5,0.7526]
[1745457958903,6.58224964,1784.0,1783.5,0.7526]
[1745457959103,5.47430163,1784.0,1783.5,0.7526]
[1745457959585,5.47430163,1784.0,1783.6,3.92392027]
[1745457959918,4.955,1784.0,1783.6,3.92392027]
[1745457960425,5.47430163,1784.0,1783.6,3.92392027]
[1745457960585,5.60571581,1783.9,1783.5,0.7526]
[1745457960785,5.47430163,1784.0,1783.5,0.7526]
[1745457960786,11.07978264,1784.0,1783.5,0.7526]
[1745457960985,7.14280269,1784.0,1783.5,0.7526]
[1745457961185,7.14310901,1784.0,1783.5,0.7526]
[1745457961921,5.47460795,1784.0,1783.6,3.92392027]
[1745457962423,4.955,1784.0,1783.5,0.7526]
[1745457963281,10.56041695,1784.0,1783.5,0.7526]
[1745457963486,0.51933653,1783.9,1783.5,0.7526]
[1745457964381,0.7701,1783.8,1783.3,0.7589]
[1745457964591,5.60680173,1783.6,1783.1,0.7589]
[1745457964794,4.956,1783.5,1783.2,3.92392027]
[1745457965007,4.956,1783.5,1783.1,0.7589]
[1745457965305,4.956,1783.5,1783.1,3.7589]
[1745457965502,5.60780958,1783.3,1782.9,0.7589]
[1745457965709,4.956,1783.2,1782.9,0.7589]
[1745457966640,4.956,1783.2,1782.9,4.68282027]
[1745457967595,4.956,1783.2,1783.0,0.10493347]
[1745457971324,5.60821042,1783.1,1783.0,0.10493347]
[1745457971506,5.7261,1783.2,1783.0,0.10493347]
[1745457971507,11.33410285,1783.2,1783.0,0.10493347]
[1745457971701,13.02827521,1783.2,1782.7,0.7589]
[1745457971893,13.02827521,1783.2,1783.1,0.11142795]
[1745457972097,13.02827521,1783.2,1782.7,0.7589]
[1745457972306,13.02827521,1783.2,1782.8,0.11142795]
[1745457972532,7.42027236,1783.2,1782.8,0.11142795]
[1745457973138,4.956,1783.2,1782.8,4.03534822]
[1745457973648,19.2641,1783.6,1783.0,4.68282027]
[1745457973806,24.2121,1783.6,1783.2,3.92392027]
[1745457973997,26.63331,1783.6,1783.1,4.03598534]
[1745457974542,32.23996037,1783.6,1783.1,4.03598534]
[1745457975747,26.63331,1783.6,1783.1,4.03598534]
[1745457976042,26.63331,1783.6,1783.1,0.11206507]
[1745457976246,5.60775244,1783.3,1783.1,0.11206507]
[1745457976399,6.72926525,1783.3,1782.8,0.8005]
[1745457976603,4.948,1783.2,1782.9,0.11034502]
[1745457977436,4.948,1783.2,1782.9,4.03426529]
[1745457978907,4.948,1783.2,1783.0,0.8005]
[1745457979131,4.948,1783.2,1783.1,3.92392027]
[1745457979303,4.948,1783.2,1783.1,4.50829994]
[1745457981530,4.948,1783.5,1783.1,4.50829994]
[1745457981707,4.948,1783.5,1783.1,4.03585791]
[1745457982358,10.55495683,1783.5,1783.1,4.03585791]
[1745457982755,4.948,1783.5,1783.1,4.03585791]
[1745457982951,10.55497145,1783.5,1783.1,0.11193764]
[1745457983324,4.948,1783.5,1783.1,0.11193764]
[1745457983522,5.60789591,1783.2,1783.1,0.11193764]
[1745457983715,0.7914,1782.9,1782.2,10.3352273]
[1745457983917,4.948,1782.8,1782.5,0.8005]
[1745457984458,4.948,1782.8,1782.6,3.92392027]
[1745457984809,4.948,1782.8,1782.5,0.8005]
[1745457987960,4.948,1782.8,1782.6,3.92392027]
[1745457993153,4.948,1782.8,1782.5,0.8005]
[1745457993362,5.7684,1782.8,1782.4,3.92392027]
[1745457996074,4.948,1782.8,1782.4,3.92392027]
[1745457997454,4.948,1782.8,1782.6,3.92392027]
[1745457997963,0.51847314,1782.9,1782.8,5.60915413]
[1745457998166,0.51847314,1782.9,1782.8,13.2948744]
[1745457998334,18.494,1783.6,1782.8,10.84784054]
[1745457998335,0.51847314,1783.5,1782.8,10.84784054]
[1745457998539,0.51847314,1783.5,1782.9,0.7618]
[1745457998940,29.87123044,1783.6,1783.0,3.0]
[1745457999140,2.98712304,1783.5,1783.0,6.92392027]
[1745458000565,2.98712304,1783.5,1783.0,12.53234057]
[1745458000767,2.98712304,1783.5,1783.0,6.92392027]
[1745458001784,23.444,1783.6,1783.3,6.36927267]
[1745458001946,23.444,1783.6,1783.4,3.92392027]
[1745458002170,4.95,1783.6,1783.4,3.92392027]
[1745458003303,4.95,1783.6,1783.5,5.60695262]
[1745458003463,4.958,1783.9,1783.5,5.60695262]
[1745458004084,4.958,1783.9,1783.6,10.29212188]
[1745458004395,5.7784,1784.4,1783.9,6.36746338]
[1745458004602,5.7784,1784.4,1784.0,3.92392027]
[1745458004800,4.958,1784.4,1784.2,3.92392027]
[1745458005410,4.958,1784.4,1784.1,3.0]
[1745458005769,4.958,1784.4,1784.1,8.60495758]
[1745458006404,4.958,1784.4,1784.1,3.0]
[1745458007004,4.958,1784.4,1784.1,8.60486196]
[1745458007203,4.958,1784.4,1784.1,10.47324018]
[1745458008098,4.958,1784.4,1784.1,4.86837822]
[1745458009709,4.958,1784.4,1784.1,10.47315704]
[1745458009914,0.8204,1784.6,1784.1,10.47315704]
[1745458011315,0.8204,1784.6,1784.1,4.86837822]
[1745458011516,1.95846281,1784.6,1784.1,3.0]
[1745458013114,5.60431597,1784.4,1783.9,0.7618]
[1745458013286,5.7339,1784.3,1783.7,0.7952]
[1745458013496,5.7339,1784.3,1783.5,10.08050033]
[1745458013497,0.57339,1784.2,1783.5,10.87566041]
[1745458013808,0.57339,1784.2,1783.6,5.60650634]
[1745458014007,0.57339,1784.2,1783.7,3.0]
[1745458014511,0.57339,1784.2,1783.5,10.8756832]
[1745458015025,6.17818893,1784.2,1783.6,3.0]
[1745458015207,0.57339,1784.2,1783.6,3.0]
[1745458015407,0.57339,1784.2,1783.6,4.38756832]
[1745458015623,0.57339,1784.2,1783.6,9.99409734]
[1745458015796,5.7339,1784.3,1783.6,9.99409734]
[1745458015996,11.33835256,1784.3,1783.6,9.99409734]
[1745458017221,5.7339,1784.3,1783.6,9.99401398]
[1745458017430,11.33837842,1784.3,1783.6,9.99401398]
[1745458017595,11.33837409,1784.3,1783.6,9.99401398]
[1745458017924,13.03263536,1784.3,1783.6,9.99419427]
[1745458020233,7.42816127,1784.3,1783.7,5.60630047]
[1745458020403,7.42816127,1784.3,1783.6,9.99419427]
[1745458020795,7.42816127,1784.3,1783.7,5.60611404]
[1745458020999,5.7339,1784.3,1783.8,9.4105029]
[1745458021197,5.7339,1784.3,1784.0,5.60532742]
[1745458021427,5.7339,1784.3,1783.8,0.8046]
[1745458021428,0.7779,1784.3,1783.9,13.07922847]
[1745458021796,0.7779,1784.3,1783.9,3.0]
[1745458022333,0.7779,1784.3,1783.8,3.8046]
[1745458022528,0.7779,1784.3,1783.9,0.38046]
[1745458022695,6.38248308,1784.3,1783.7,3.0]
[1745458023194,4.956,1784.2,1783.7,3.0]
[1745458023519,4.956,1784.2,1783.7,8.60617281]
[1745458024599,4.956,1784.2,1783.8,3.0]
[1745458024809,4.956,1784.2,1783.8,3.8606146]
[1745458025938,4.956,1784.2,1783.8,0.8606146]
[1745458026231,0.8252,1784.1,1783.6,5.19216832]
[1745458027041,0.8252,1784.1,1783.6,10.79870868]
[1745458027343,0.8252,1784.1,1783.6,14.72777392]
[1745458027548,0.8252,1784.1,1783.6,9.12123356]
[1745458027746,0.8252,1784.1,1783.7,0.91212336]
[1745458027941,0.8252,1784.1,1783.6,9.12123356]
[1745458028149,0.8252,1784.1,1783.6,1.38756832]
[1745458028309,0.8252,1784.0,1783.5,3.0]
[1745458028943,0.8252,1784.0,1783.4,4.73366524]
[1745458029133,0.8252,1784.0,1783.4,3.92906524]
[1745458029330,0.8252,1784.0,1783.8,3.92906524]
[1745458030043,5.7353,1784.2,1783.9,8.6055275]
[1745458030250,4.956,1784.2,1784.0,10.39486768]
[1745458030552,4.956,1784.2,1784.0,4.78961799]
[1745458031050,4.956,1784.2,1784.0,10.39494587]
[1745458031251,7.35647239,1785.1,1784.0,10.39494587]
[1745458031252,4.915,1784.5,1784.1,3.0]
[1745458031541,0.7793,1784.6,1784.3,9.53347615]
[1745458032254,0.7793,1784.6,1784.3,3.92906524]
[1745458032463,0.7793,1784.6,1784.2,0.3]
[1745458032824,0.7793,1784.6,1784.3,3.0]
[1745458033152,0.7793,1784.6,1784.3,8.60428804]
[1745458033464,4.915,1784.7,1784.4,6.46454113]
[1745458033658,0.7793,1784.8,1784.5,9.53264258]
[1745458033863,24.1893,1785.0,1784.5,9.53273449]
[1745458034359,24.1893,1785.0,1784.5,9.53271154]
[1745458034662,24.1893,1785.0,1784.6,11.2067506]
[1745458034962,24.1893,1785.0,1784.6,7.11687088]
[1745458035145,5.6933,1785.0,1784.6,7.11687088]
[1745458035456,5.6933,1785.0,1784.7,9.53206121]
[1745458035660,4.914,1785.0,1784.7,9.53206121]
[1745458035817,4.914,1785.0,1784.7,15.13499909]
[1745458036018,4.914,1785.0,1784.7,11.57723119]
[1745458036257,4.914,1785.0,1784.8,3.0]
[1745458036452,4.914,1785.0,1784.8,8.60285712]
[1745458036659,5.7883,1785.4,1784.9,10.3352654]
[1745458036960,5.7883,1785.4,1785.0,1.03352654]
[1745458037554,0.7743,1785.2,1784.8,3.0]
[1745458038423,5.7883,1785.4,1784.9,9.53140393]
[1745458038734,5.7883,1785.4,1785.0,0.95314039]
[1745458038939,5.7883,1785.4,1784.8,3.0]
[1745458039117,5.7883,1785.4,1784.8,8.60275478]
[1745458040163,5.7883,1785.4,1784.8,3.0]
[1745458040550,5.7883,1785.4,1784.8,8.60271032]
[1745458040868,5.7883,1785.4,1784.9,9.53160819]
[1745458041061,5.7883,1785.4,1785.0,0.95316082]
[1745458041778,5.7883,1785.4,1785.0,6.55529003]
[1745458042359,5.7883,1785.4,1785.0,3.95316082]
[1745458043848,0.1,1785.4,1785.1,3.92906524]
[1745458044249,0.1,1785.4,1785.1,9.53094661]
[1745458045292,0.1,1785.4,1785.2,5.60160493]
[1745458046010,0.1,1785.4,1785.1,9.53081565]
[1745458046154,0.1,1785.4,1785.2,6.55469446]
[1745458046675,0.1,1785.4,1785.2,0.95308157]
[1745458048279,0.1,1785.4,1785.1,3.92906524]
[1745458048709,0.1,1785.4,1785.1,9.5309712]
[1745458049600,0.1,1785.4,1785.2,5.60159933]
[1745458050898,0.1,1785.4,1785.3,6.92906524]
[1745458051199,0.1,1785.4,1785.3,13.29606474]
[1745458051403,0.1,1785.4,1785.3,15.18581098]
[1745458051603,0.1,1785.4,1785.3,4.88974624]
[1745458051896,0.1,1785.4,1785.3,3.0]
[1745458052700,0.1,1785.4,1785.3,6.92906524]
[1745458054404,0.1,1785.4,1785.3,12.53036474]
[1745458055316,0.1,1785.4,1785.3,13.29606474]
[1745458055470,0.1,1785.4,1785.3,7.69476524]
[1745458055799,0.1,1785.4,1785.3,8.25867891]
[1745458056368,0.1,1785.4,1785.3,4.32961367]
[1745458056582,0.1,1785.4,1785.3,12.53036474]
[1745458060211,0.1,1785.4,1785.3,8.6012995]
[1745458060406,0.1,1785.4,1785.3,12.53036474]
[1745458062924,0.1,1785.4,1785.3,3.0]
[1745458063224,0.8915,1785.4,1785.3,3.0]
[1745458063384,0.8915,1785.4,1785.1,9.53084979]
[1745458063582,0.8915,1785.4,1785.2,3.0]
[1745458063988,0.8915,1785.4,1785.2,8.60156706]
[1745458064532,0.8915,1785.4,1785.2,3.0]
[1745458064824,0.1,1785.4,1785.3,5.6012995]
[1745458065026,0.1,1785.4,1785.3,12.53036474]
[1745458066926,0.1,1785.4,1785.3,6.92906524]
[1745458067427,0.1,1785.4,1785.3,14.34357461]
[1745458070628,0.1,1785.4,1785.3,15.15177461]
[1745458070927,0.1,1785.4,1785.3,14.34357461]
[1745458079781,0.1,1785.4,1784.9,5.6023905]
[1745458079782,0.8998,1785.4,1784.9,5.6023905]
[1745458079923,0.8998,1785.4,1785.0,8.60218907]
[1745458080119,0.8998,1785.4,1785.0,12.53125431]
[1745458080344,0.8998,1785.4,1785.0,14.34462077]
[1745458080559,0.8998,1785.4,1785.0,19.94665638]
[1745458080720,0.8998,1785.4,1785.2,5.60144479]
[1745458080924,0.8998,1785.4,1785.3,5.6012995]
[1745458081884,0.8998,1785.4,1785.2,9.53064921]
[1745458082072,0.8998,1785.4,1785.2,11.04390504]
[1745458083766,0.8998,1785.4,1785.2,5.44232107]
[1745458084354,0.8998,1785.4,1785.2,3.93984931]
[1745458085373,0.8998,1785.4,1785.2,9.54143138]
[1745458086076,0.1,1785.4,1785.3,5.6012995]
[1745458086575,0.1,1785.4,1785.2,3.93984931]
[1745458086748,0.1,1785.4,1785.2,10.49547062]
[1745458087070,0.1,1785.4,1785.3,8.6012995]
[1745458092886,0.1,1785.4,1785.3,3.0]
[1745458093073,0.9281,1785.4,1785.2,3.01078407]
[1745458093579,0.1,1785.4,1785.2,8.61235781]
[1745458093786,0.1,1785.4,1785.3,4.79030102]
[1745458093971,0.1,1785.4,1785.3,13.39160052]
[1745458094173,0.1,1785.4,1785.3,7.79030102]
[1745458094345,0.1,1785.4,1785.3,3.86123578]
[1745458094553,0.9281,1785.4,1785.3,3.0]
[1745458094879,0.1,1785.4,1785.3,8.6012995]
[1745458095376,0.1,1785.4,1785.3,12.53036474]
[1745458095775,0.1,1785.4,1785.3,3.0]
[1745458095980,0.1,1785.4,1785.3,3.86122669]
[1745458097560,0.1,1785.4,1785.3,9.46252619]
[1745458098383,0.1,1785.4,1785.3,3.86122669]
[1745458098584,0.9008,1785.4,1785.2,0.01078407]
[1745458106005,0.9008,1785.4,1785.2,5.61237908]
[1745458106178,0.1,1785.4,1785.3,5.6012995]
[1745458106811,0.1,1785.4,1785.2,9.54128298]
[1745458106974,0.1,1785.4,1785.3,0.9541283]
[1745458107173,0.1,1785.4,1785.2,3.93984931]
[1745458110912,0.1,1785.4,1785.2,9.54143427]
[1745458111516,0.1,1785.4,1785.2,3.93984931]
[1745458111720,0.1,1785.4,1785.2,0.01078407]
[1745458112811,5.70101353,1785.4,1785.2,0.01078407]
[1745458113014,1.36590135,1785.3,1785.2,0.01078407]
[1745458113174,0.7958,1785.3,1785.2,0.01078407]
[1745458121936,0.1,1785.4,1785.3,5.6012995]
[1745458122237,0.1,1785.4,1785.3,10.32246474]
[1745458123434,0.1,1785.4,1785.3,13.32246474]
[1745458131448,0.1,1785.4,1785.3,3.0]
[1745458131946,0.8726,1785.4,1785.3,3.30107841]
[1745458132105,0.1,1785.4,1785.3,8.90237791]
[1745458132310,0.1,1785.4,1785.3,12.83144315]
[1745458135646,0.1,1785.4,1785.3,13.58504315]
[1745458137422,0.1,1785.4,1785.3,12.83144315]
[1745458141342,0.1,1785.4,1785.2,0.01078407]
[1745458141343,0.7836,1785.3,1785.2,0.01078407]
[1745458155460,0.1,1785.4,1785.3,5.6012995]
[1745458155661,0.1,1785.4,1785.2,0.01078407]
[1745458159470,0.1,1785.4,1785.2,5.61227959]
[1745458159673,0.1,1785.4,1785.2,7.20382041]
[1745458161503,0.1,1785.4,1785.3,8.6012995]
[1745458161901,0.1,1785.4,1785.3,12.53036474]
[1745458162558,0.1,1785.4,1785.3,3.0]
[1745458167200,0.1,1785.4,1785.2,0.01078407]
[1745458168800,0.8037,1785.3,1785.2,0.01078407]
[1745458172757,0.1,1785.4,1785.2,0.01078407]
[1745458175068,0.7765,1785.3,1785.2,0.01078407]
[1745458175574,1.42426382,1785.3,1785.2,0.01078407]
[1745458181835,0.1,1785.4,1785.2,3.93490845]
[1745458182037,0.1,1785.4,1785.2,10.364879]
[1745458183989,0.1,1785.4,1785.2,4.76340845]
[1745458184155,0.1,1785.4,1785.2,10.36497709]
[1745458186877,0.1,1785.4,1785.3,5.6012995]
[1745458187078,0.1,1785.4,1785.3,7.19792716]
[1745458189278,0.1,1785.4,1785.3,1.59662766]
[1745458190095,0.1,1785.4,1785.3,1.09662766]
[1745458195497,0.1,1785.4,1785.2,9.79218463]
[1745458197266,0.1,1785.4,1785.3,1.72408884]
[1745458200305,0.1,1785.4,1785.3,7.32538834]
[1745458200606,0.1,1785.4,1785.3,11.14079036]
[1745458200792,0.1,1785.4,1785.3,11.89079036]
[1745458202172,0.1,1785.4,1785.3,13.6148792]
[1745458202372,0.7524,1786.3,1786.0,5.5990541]
[1745458202573,0.7524,1786.3,1786.0,1.72408884]
[1745458203210,0.1,1786.4,1786.2,1.72408884]
[1745458203380,0.1,1786.4,1786.2,3.91759804]
[1745458203580,0.1,1786.4,1786.1,3.75]
[1745458203788,0.1,1786.4,1786.1,3.0]
[1745458204274,0.1,1786.4,1785.9,0.75]
[1745458204526,0.67384,1786.4,1786.0,3.0]
[1745458204819,0.7524,1786.3,1785.9,3.0]
[1745458205228,0.7524,1786.3,1785.9,8.59939534]
[1745458205385,0.1,1786.4,1786.1,3.91759804]
[1745458205590,0.1,1786.4,1786.1,9.51633631]
[1745458205792,0.1,1786.4,1786.0,9.34905439]
[1745458207225,0.7524,1786.3,1786.0,3.0]
[1745458207727,1.32624,1786.3,1786.0,3.0]
[1745458208023,1.32624,1786.3,1785.8,9.34958919]
[1745458208223,1.32624,1786.3,1785.8,3.75]
[1745458208429,0.7524,1786.2,1785.7,3.0]
[1745458208630,0.7524,1786.2,1785.6,6.35021024]
[1745458208786,0.7524,1786.2,1785.7,5.60001825]
[1745458208986,5.59893788,1786.1,1785.5,3.0]
[1745458209186,0.7524,1785.9,1785.5,3.0]
[1745458209432,0.7524,1785.9,1785.5,8.6006581]
[1745458209627,0.7524,1785.9,1785.5,5.6006581]
[1745458210229,0.7524,1785.9,1785.6,3.0]
[1745458210586,0.7524,1785.9,1785.6,8.6001732]
[1745458211626,0.7524,1785.9,1785.7,5.59999502]
[1745458211813,4.886,1786.0,1785.7,5.6000448]
[1745458212021,6.21224,1786.3,1785.9,5.5991156]
[1745458212219,5.6384,1786.3,1786.0,5.59897826]
[1745458212732,5.6384,1786.3,1785.8,12.51717255]
[1745458212934,5.6384,1786.3,1785.7,0.75]
[1745458213094,0.7524,1786.1,1785.5,8.60056327]
[1745458213534,0.7524,1786.1,1785.5,8.60042217]
[1745458213846,0.7524,1786.1,1785.4,6.35081753]
[1745458213847,0.7524,1786.0,1785.4,0.75]
[1745458213993,0.7524,1786.0,1785.4,6.3507389]
[1745458214198,0.7524,1786.0,1785.5,3.0]
[1745458215056,0.7524,1786.0,1785.5,8.60065053]
[1745458216005,0.7524,1786.0,1785.6,5.60022447]
[1745458216811,0.7524,1786.0,1785.5,19.05361184]
[1745458217012,0.7524,1786.0,1785.5,19.0535177]
[1745458217534,0.7524,1786.0,1785.5,13.45308834]
[1745458217736,0.7524,1786.0,1785.5,19.05355654]
[1745458217942,0.7524,1786.0,1785.6,5.60024866]